fUSD/lending_fUSD_20260529
["ID","MTS","AMOUNT","RATE_DAILY","PERIOD"]
[423317790,1780054265000,-200.0,0.00031,120]
[423317764,1780054265000,-944.6885711,0.00030788,7]
[423317766,1780054265000,-200.0,0.000308,11]
[423317768,1780054265000,-796.7,0.00030823,7]
[423317765,1780054265000,-250.0,0.000308,30]
[423317769,1780054265000,-547.59197655,0.00030831,2]
[423317770,1780054265000,-476.44659787,0.00030831,7]
[423317767,1780054265000,-1177.0,0.00030822,30]
[423317772,1780054265000,-586.01240031,0.00030831,7]
[423317771,1780054265000,-459.06794687,0.00030831,7]
[423317773,1780054265000,-1209.44957211,0.00030831,7]
[423317775,1780054265000,-1489.0,0.00030839,30]
[423317777,1780054265000,-997.47,0.00030877,120]
[423317762,1780054265000,-155.22549886,0.00030788,7]
[423317778,1780054265000,-163.0,0.00030878,3]
[423317787,1780054265000,-215.51,0.00031,2]
[423317788,1780054265000,-701.86967386,0.00031,2]
[423317785,1780054265000,-1225.0,0.00030981,2]
[423317776,1780054265000,-1637.64399571,0.0003084,2]
[423317783,1780054265000,-1272.0,0.00030981,2]
[423317786,1780054265000,-3638.0,0.00030981,2]
[423317782,1780054265000,-188.44606373,0.00030927,2]
[423317780,1780054265000,-2770.2,0.000309,120]
[423317781,1780054265000,-665.80342144,0.0003092,30]
[423317774,1780054265000,-616.70230738,0.00030831,7]
[423317779,1780054265000,-1590.0,0.00030878,3]
[423317784,1780054265000,-525.0,0.00030981,2]
[423317856,1780054266000,-763.45237439,0.00031343,7]
[423317848,1780054266000,-613.58036084,0.00031343,7]
[423317851,1780054266000,-600.64699541,0.00031343,7]
[423317852,1780054266000,-331.00823145,0.00031343,7]
[423317846,1780054266000,-562.13129836,0.00031343,7]
[423317847,1780054266000,-757.38298425,0.00031343,7]
[423317853,1780054266000,-800.19884499,0.00031343,7]
[423317850,1780054266000,-551.37323193,0.00031343,7]
[423317854,1780054266000,-529.41031767,0.00031343,7]
[423317849,1780054266000,-728.33150194,0.00031343,7]
[423317855,1780054266000,-651.97849975,0.00031343,7]
[423317862,1780054266000,-585.29386708,0.00031343,7]
[423317865,1780054266000,-634.59138727,0.00031344,7]
[423317857,1780054266000,-645.29269819,0.00031343,7]
[423317864,1780054266000,-660.56526917,0.00031344,7]
[423317863,1780054266000,-457.66138496,0.00031343,7]
[423317858,1780054266000,-710.84008842,0.00031343,7]
[423317859,1780054266000,-554.63080055,0.00031343,7]
[423317860,1780054266000,-491.45959357,0.00031343,7]
[423317868,1780054266000,-690.96185393,0.00031344,7]
[423317870,1780054266000,-723.40083595,0.00031344,7]
[423317867,1780054266000,-725.49306944,0.00031344,7]
[423317844,1780054266000,-523.42570188,0.00031342,7]
[423317861,1780054266000,-669.5986985,0.00031343,7]
[423317845,1780054266000,-555.81542163,0.00031343,2]
[423317831,1780054266000,-164.94811919,0.00031341,7]
[423317840,1780054266000,-166.20206057,0.00031342,7]
[423317866,1780054266000,-624.88967957,0.00031344,7]
[423317819,1780054266000,-213.04846433,0.00031339,7]
[423317818,1780054266000,-159.34080076,0.00031339,7]
[423317820,1780054266000,-161.87142922,0.00031339,7]
[423317823,1780054266000,-163.0,0.00031339,3]
[423317822,1780054266000,-168.95311079,0.00031339,7]
[423317824,1780054266000,-164.02260231,0.00031339,7]
[423317825,1780054266000,-163.29326204,0.00031339,7]
[423317826,1780054266000,-173.0522868,0.00031339,7]
[423317829,1780054266000,-700.19144759,0.0003134,7]
[423317830,1780054266000,-657.33416582,0.0003134,7]
[423317842,1780054266000,-301.55018014,0.00031342,7]
[423317828,1780054266000,-798.8027429,0.0003134,7]
[423317821,1780054266000,-424.22353683,0.00031339,2]
[423317833,1780054266000,-414.00856295,0.00031341,7]
[423317832,1780054266000,-722.21608119,0.00031341,7]
[423317843,1780054266000,-301.5555004,0.00031342,7]
[423317834,1780054266000,-324.03231756,0.00031341,7]
[423317838,1780054266000,-342.74942695,0.00031342,7]
[423317836,1780054266000,-324.43114156,0.00031341,7]
[423317835,1780054266000,-304.82514643,0.00031341,7]
[423317839,1780054266000,-340.66294342,0.00031342,7]
[423317837,1780054266000,-318.84988709,0.00031341,7]
[423317841,1780054266000,-423.2260397,0.00031342,7]
[423317827,1780054266000,-165.12243611,0.00031339,7]
[423317871,1780054266000,-744.29819984,0.00031344,7]
[423317906,1780054266000,-167.50753875,0.00031382,7]
[423317874,1780054266000,-724.45466329,0.00031344,7]
[423317912,1780054266000,-499.09612419,0.00031382,7]
[423317911,1780054266000,-327.18449977,0.00031382,7]
[423317903,1780054266000,-160.42850854,0.00031382,7]
[423317925,1780054266000,-439.84777493,0.00031382,7]
[423317900,1780054266000,-346.46281349,0.00031382,7]
[423317904,1780054266000,-160.4253173,0.00031382,7]
[423317905,1780054266000,-406.19395241,0.00031382,7]
[423317902,1780054266000,-160.42531781,0.00031382,7]
[423317907,1780054266000,-155.5235617,0.00031382,7]
[423317910,1780054266000,-457.99628692,0.00031382,7]
[423317908,1780054266000,-319.01564937,0.00031382,7]
[423317901,1780054266000,-333.78511381,0.00031382,7]
[423317909,1780054266000,-661.15135715,0.00031382,7]
[423317915,1780054266000,-613.76524063,0.00031382,7]
[423317914,1780054266000,-160.45909009,0.00031382,7]
[423317922,1780054266000,-402.80754317,0.00031382,7]
[423317921,1780054266000,-170.45189406,0.00031382,7]
[423317920,1780054266000,-160.49733697,0.00031382,7]
[423317918,1780054266000,-522.34402998,0.00031382,7]
[423317917,1780054266000,-160.4253198,0.00031382,7]
[423317916,1780054266000,-160.42531587,0.00031382,7]
[423317919,1780054266000,-835.34770017,0.00031382,7]
[423317923,1780054266000,-348.934414,0.00031382,7]
[423317869,1780054266000,-781.62560351,0.00031344,7]
[423317913,1780054266000,-160.69199126,0.00031382,7]
[423317897,1780054266000,-561.87523418,0.00031382,2]
[423317924,1780054266000,-726.8315098,0.00031382,7]
[423317892,1780054266000,-747.49807595,0.00031382,5]
[423317895,1780054266000,-325.99365082,0.00031382,7]
[423317872,1780054266000,-623.43132446,0.00031344,7]
[423317873,1780054266000,-636.35054888,0.00031344,7]
[423317876,1780054266000,-609.13872775,0.00031344,7]
[423317888,1780054266000,-448.01293799,0.00031382,7]
[423317878,1780054266000,-152.0,0.0003135,34]
[423317877,1780054266000,-601.99193116,0.00031344,7]
[423317879,1780054266000,-997.47,0.0003137,120]
[423317880,1780054266000,-717.83360202,0.00031376,7]
[423317881,1780054266000,-688.5852972,0.00031376,7]
[423317883,1780054266000,-1060.97461839,0.00031382,7]
[423317887,1780054266000,-506.07001486,0.00031382,7]
[423317875,1780054266000,-610.98904212,0.00031344,7]
[423317882,1780054266000,-584.46617492,0.00031382,7]
[423317886,1780054266000,-1363.06137673,0.00031382,7]
[423317898,1780054266000,-518.26482842,0.00031382,2]
[423317894,1780054266000,-411.50549021,0.00031382,7]
[423317896,1780054266000,-408.96463085,0.00031382,7]
[423317891,1780054266000,-384.50021525,0.00031382,7]
[423317899,1780054266000,-587.77991003,0.00031382,2]
[423317893,1780054266000,-764.47911495,0.00031382,7]
[423317889,1780054266000,-329.67752506,0.00031382,7]
[423317884,1780054266000,-699.41843236,0.00031382,7]
[423317885,1780054266000,-164.96870002,0.00031382,2]
[423317890,1780054266000,-449.99939243,0.00031382,7]
[423317944,1780054267000,-212.76995561,0.00031382,7]
[423317949,1780054267000,-165.55157232,0.00031382,7]
[423317950,1780054267000,-308.75521843,0.00031382,7]
[423317952,1780054267000,-168.26811507,0.00031382,7]
[423317951,1780054267000,-168.84292047,0.00031382,7]
[423317957,1780054267000,-449.8075737,0.00031382,7]
[423317953,1780054267000,-501.52436015,0.00031382,7]
[423317954,1780054267000,-168.79279335,0.00031382,2]
[423317956,1780054267000,-164.41527313,0.00031382,7]
[423317966,1780054267000,-160.49732895,0.00031382,7]
[423317959,1780054267000,-161.5358857,0.00031382,7]
[423317958,1780054267000,-441.42006145,0.00031382,7]
[423317960,1780054267000,-453.38015755,0.00031382,7]
[423317961,1780054267000,-695.56136862,0.00031382,7]
[423317963,1780054267000,-304.58981375,0.00031382,7]
[423317962,1780054267000,-634.49126615,0.00031382,7]
[423317946,1780054267000,-1198.79630661,0.00031382,7]
[423317965,1780054267000,-770.11690927,0.00031382,7]
[423317955,1780054267000,-157.42799772,0.00031382,7]
[423317948,1780054267000,-167.92382881,0.00031382,7]
[423317933,1780054267000,-306.56643812,0.00031382,7]
[423317945,1780054267000,-222.12062325,0.00031382,7]
[423317964,1780054267000,-170.79684311,0.00031382,7]
[423317927,1780054267000,-308.9980516,0.00031382,7]
[423317926,1780054267000,-160.35581611,0.00031382,7]
[423317928,1780054267000,-389.94863677,0.00031382,7]
[423317930,1780054267000,-315.36925289,0.00031382,7]
[423317931,1780054267000,-587.82795927,0.00031382,7]
[423317929,1780054267000,-486.95905239,0.00031382,7]
[423317932,1780054267000,-168.87012776,0.00031382,7]
[423317942,1780054267000,-160.42531756,0.00031382,7]
[423317936,1780054267000,-160.42531149,0.00031382,7]
[423317937,1780054267000,-160.70734615,0.00031382,7]
[423317935,1780054267000,-160.42530055,0.00031382,7]
[423317939,1780054267000,-160.42851659,0.00031382,7]
[423317940,1780054267000,-160.42852072,0.00031382,7]
[423317934,1780054267000,-160.49736034,0.00031382,7]
[423317941,1780054267000,-160.42531152,0.00031382,7]
[423317947,1780054267000,-170.14803788,0.00031382,7]
[423317943,1780054267000,-340.62168414,0.00031382,7]
[423317938,1780054267000,-301.40472437,0.00031382,7]
[423317968,1780054267000,-688.72185044,0.00031382,7]
[423317971,1780054267000,-430.04676054,0.00031382,7]
[423317967,1780054267000,-823.57551348,0.00031382,7]
[423317993,1780054267000,-489.55451742,0.00031506,30]
[423317991,1780054267000,-150.0,0.000315,2]
[423317995,1780054267000,-1030.94,0.00031556,7]
[423317998,1780054267000,-188.44606373,0.00031578,2]
[423318002,1780054267000,-997.47,0.00031616,120]
[423317996,1780054267000,-1226.11,0.00031556,7]
[423317999,1780054267000,-489.65545982,0.00031584,2]
[423317997,1780054267000,-1069.32,0.00031556,7]
[423318000,1780054267000,-193.64,0.00031605,14]
[423318004,1780054267000,-250.0,0.00031644,7]
[423318003,1780054267000,-152.0,0.00031632,35]
[423318005,1780054267000,-250.0,0.00031644,7]
[423318011,1780054267000,-2318.0,0.00031659,3]
[423318006,1780054267000,-250.0,0.00031644,7]
[423318007,1780054267000,-250.0,0.00031644,7]
[423318008,1780054267000,-2019.51,0.00031647,2]
[423318010,1780054267000,-1590.0,0.00031659,3]
[423317969,1780054267000,-458.76058214,0.00031382,5]
[423318009,1780054267000,-1590.0,0.00031659,3]
[423317994,1780054267000,-500.0,0.00031507,7]
[423317992,1780054267000,-150.0,0.000315,120]
[423318001,1780054267000,-184.11,0.00031605,14]
[423317988,1780054267000,-2318.0,0.00031479,3]
[423317990,1780054267000,-200.87364833,0.000315,2]
[423317975,1780054267000,-796.42830105,0.00031383,7]
[423317974,1780054267000,-160.49731709,0.00031383,7]
[423317972,1780054267000,-1259.58476147,0.00031382,7]
[423317970,1780054267000,-310.45099771,0.00031382,7]
[423317976,1780054267000,-348.99946378,0.000314,30]
[423317979,1780054267000,-612.09059583,0.00031426,7]
[423317978,1780054267000,-635.26213049,0.00031426,7]
[423317980,1780054267000,-781.34986708,0.00031426,7]
[423317977,1780054267000,-1000.0,0.000314,120]
[423317983,1780054267000,-822.26974318,0.00031426,7]
[423317984,1780054267000,-745.73447689,0.00031426,7]
[423317981,1780054267000,-730.12263541,0.00031426,2]
[423317985,1780054267000,-20232.87095048,0.0003143,4]
[423317982,1780054267000,-1612.59942948,0.00031426,7]
[423317986,1780054267000,-163.0,0.00031433,3]
[423317989,1780054267000,-2318.0,0.00031479,3]
[423317973,1780054267000,-160.42851735,0.00031383,7]
[423317987,1780054267000,-2318.0,0.00031479,3]
[423318042,1780054268000,-2770.2,0.000319,120]
[423318038,1780054268000,-150.0,0.00031878,2]
[423318039,1780054268000,-207.0,0.00031878,2]
[423318040,1780054268000,-150.0,0.00031878,2]
[423318043,1780054268000,-9928.921,0.000319,2]
[423318045,1780054268000,-875.23930948,0.00031934,7]
[423318044,1780054268000,-152.0,0.00031913,36]
[423318041,1780054268000,-233.0,0.00031878,2]
[423318047,1780054268000,-766.97545105,0.00031936,7]
[423318053,1780054268000,-836.99837313,0.00031936,7]
[423318048,1780054268000,-910.41437742,0.00031936,7]
[423318055,1780054268000,-781.11209946,0.00031937,7]
[423318050,1780054268000,-814.97312469,0.00031936,7]
[423318052,1780054268000,-888.55011052,0.00031936,7]
[423318049,1780054268000,-837.86506151,0.00031936,7]
[423318051,1780054268000,-806.61587274,0.00031936,7]
[423318054,1780054268000,-793.23923409,0.00031937,7]
[423318056,1780054268000,-977.03200438,0.00031937,7]
[423318057,1780054268000,-905.56832911,0.00031937,7]
[423318036,1780054268000,-150.0,0.00031878,2]
[423318046,1780054268000,-821.66770728,0.00031934,7]
[423318037,1780054268000,-235.0,0.00031878,2]
[423318014,1780054268000,-1682.0,0.00031776,30]
[423318035,1780054268000,-997.47,0.00031863,120]
[423318058,1780054268000,-761.42340968,0.00031938,7]
[423318012,1780054268000,-200.83310984,0.00031749,30]
[423318013,1780054268000,-2318.0,0.00031753,3]
[423318015,1780054268000,-480.0,0.00031776,30]
[423318016,1780054268000,-295.0,0.0003178,30]
[423318017,1780054268000,-504.0,0.0003178,30]
[423318023,1780054268000,-1023.0,0.00031782,30]
[423318022,1780054268000,-2651.0,0.00031782,30]
[423318018,1780054268000,-2834.0,0.00031782,30]
[423318021,1780054268000,-916.0,0.00031782,30]
[423318019,1780054268000,-2582.0,0.00031782,30]
[423318025,1780054268000,-758.58505848,0.00031794,120]
[423318020,1780054268000,-1108.0,0.00031782,30]
[423318024,1780054268000,-1590.0,0.00031791,3]
[423318026,1780054268000,-6580.74,0.000318,7]
[423318028,1780054268000,-200.0,0.000318,12]
[423318029,1780054268000,-1177.0,0.00031822,30]
[423318027,1780054268000,-3699.58,0.000318,7]
[423318034,1780054268000,-150.0,0.00031858,2]
[423318032,1780054268000,-1489.0,0.00031839,30]
[423318033,1780054268000,-2000.0,0.00031839,2]
[423318031,1780054268000,-163.0,0.00031838,3]
[423318059,1780054268000,-752.48991395,0.00031938,7]
[423318030,1780054268000,-2304.0,0.00031838,3]
[423318061,1780054268000,-1326.21827299,0.00031976,7]
[423318086,1780054268000,-4492.82535144,0.00032,120]
[423318091,1780054268000,-1819.34564552,0.00032,120]
[423318090,1780054268000,-3140.53360144,0.00032,120]
[423318089,1780054268000,-1348.22153541,0.00032,120]
[423318088,1780054268000,-1083.9045741,0.00032,120]
[423318092,1780054268000,-1299.15700929,0.00032,120]
[423318093,1780054268000,-1494.9363528,0.00032,120]
[423318097,1780054268000,-1312.66445638,0.00032,30]
[423318095,1780054268000,-1762.99244633,0.00032,2]
[423318096,1780054268000,-178.087383,0.00032,120]
[423318102,1780054268000,-828.20844854,0.00032,120]
[423318099,1780054268000,-504.529,0.00032,120]
[423318100,1780054268000,-1001.529,0.00032,120]
[423318098,1780054268000,-160.0,0.00032,120]
[423318101,1780054268000,-150.0,0.00032,120]
[423318103,1780054268000,-162.08,0.00032,120]
[423318105,1780054268000,-500.0,0.00032,120]
[423318104,1780054268000,-40503.0480261,0.00032,6]
[423318107,1780054268000,-199.0,0.00032,30]
[423318106,1780054268000,-150.0,0.00032,120]
[423318062,1780054268000,-874.27304045,0.00031976,7]
[423318084,1780054268000,-1050.00101569,0.00032,120]
[423318087,1780054268000,-914.62418107,0.00032,120]
[423318094,1780054268000,-6574.14597932,0.00032,120]
[423318082,1780054268000,-1334.60995752,0.00032,120]
[423318060,1780054268000,-860.7316215,0.0003197,7]
[423318063,1780054268000,-1703.82672092,0.00031976,7]
[423318064,1780054268000,-955.59889369,0.00031976,7]
[423318085,1780054268000,-1798.98185269,0.00032,120]
[423318067,1780054268000,-1044.18462521,0.00031976,7]
[423318069,1780054268000,-1574.48095184,0.00031976,7]
[423318068,1780054268000,-1498.49538327,0.00031976,7]
[423318065,1780054268000,-826.43919643,0.00031976,7]
[423318072,1780054268000,-1068.39803806,0.00032,120]
[423318073,1780054268000,-1241.09821869,0.00032,120]
[423318070,1780054268000,-163.0,0.00031979,3]
[423318066,1780054268000,-767.20655078,0.00031976,7]
[423318074,1780054268000,-3229.8591671,0.00032,120]
[423318071,1780054268000,-1590.0,0.00031979,3]
[423318083,1780054268000,-828.12548764,0.00032,120]
[423318075,1780054268000,-1923.18509593,0.00032,120]
[423318078,1780054268000,-1163.76894352,0.00032,120]
[423318079,1780054268000,-718.65429805,0.00032,120]
[423318081,1780054268000,-2824.32288502,0.00032,120]
[423318076,1780054268000,-931.37730561,0.00032,120]
[423318077,1780054268000,-1323.43742479,0.00032,120]
[423318080,1780054268000,-462.26478896,0.00032,120]
[423318122,1780054269000,-2103.79342144,0.00032094,30]
[423318119,1780054269000,-932.16809612,0.0003202,7]
[423318121,1780054269000,-1590.0,0.00032088,3]
[423318118,1780054269000,-998.50342862,0.0003202,7]
[423318116,1780054269000,-2015.74928685,0.0003202,7]
[423318117,1780054269000,-1027.83717897,0.0003202,7]
[423318120,1780054269000,-200.0,0.00032055,2]
[423318110,1780054269000,-700.0,0.00032,2]
[423318115,1780054269000,-912.65329426,0.0003202,2]
[423318112,1780054269000,-794.07766312,0.0003202,7]
[423318113,1780054269000,-765.11324478,0.0003202,7]
[423318111,1780054269000,-176.77,0.00032005,120]
[423318108,1780054269000,-1000.0,0.00032,25]
[423318109,1780054269000,-1002.529,0.00032,120]
[423318126,1780054269000,-151.0,0.00032155,7]
[423318114,1780054269000,-976.68733385,0.0003202,7]
[423318123,1780054269000,-997.47,0.0003211,120]
[423318124,1780054269000,-1590.0,0.00032119,3]
[423318130,1780054269000,-152.0,0.00032194,37]
[423318125,1780054269000,-292.5,0.00032129,2]
[423318142,1780054269000,-901.782342,0.00032329,7]
[423318140,1780054269000,-901.782342,0.00032329,7]
[423318141,1780054269000,-901.782342,0.00032329,7]
[423318143,1780054269000,-901.782342,0.00032329,7]
[423318137,1780054269000,-2318.0,0.00032299,11]
[423318135,1780054269000,-1000.0,0.00032232,30]
[423318136,1780054269000,-2318.0,0.00032299,11]
[423318139,1780054269000,-910.36122834,0.000323,2]
[423318134,1780054269000,-1000.0,0.00032232,7]
[423318133,1780054269000,-188.44606373,0.0003223,2]
[423318131,1780054269000,-304.89,0.000322,90]
[423318132,1780054269000,-7567.4,0.0003221,5]
[423318129,1780054269000,-2318.0,0.00032166,3]
[423318127,1780054269000,-2318.0,0.00032158,3]
[423318128,1780054269000,-168.0,0.00032158,3]
[423318138,1780054269000,-6689.40706694,0.000323,120]
[423318181,1780054270000,-295.0,0.0003278,30]
[423318177,1780054270000,-3000.0,0.00032672,60]
[423318173,1780054270000,-253.40439905,0.00032567,90]
[423318179,1780054270000,-1682.0,0.00032776,30]
[423318175,1780054270000,-997.47,0.00032603,120]
[423318182,1780054270000,-504.0,0.0003278,30]
[423318176,1780054270000,-1222.39,0.00032624,30]
[423318174,1780054270000,-3596.95,0.00032587,2]
[423318167,1780054270000,-1000.0,0.000325,7]
[423318178,1780054270000,-152.0,0.00032756,39]
[423318190,1780054270000,-492.23,0.000328,14]
[423318183,1780054270000,-2834.0,0.00032782,30]
[423318184,1780054270000,-2582.0,0.00032782,30]
[423318187,1780054270000,-2651.0,0.00032782,30]
[423318185,1780054270000,-1108.0,0.00032782,30]
[423318186,1780054270000,-916.0,0.00032782,30]
[423318188,1780054270000,-1023.0,0.00032782,30]
[423318169,1780054270000,-6744.23,0.00032501,30]
[423318191,1780054270000,-492.23,0.000328,14]
[423318189,1780054270000,-451.29045,0.000328,14]
[423318192,1780054270000,-492.23,0.000328,14]
[423318203,1780054270000,-997.47,0.00032849,120]
[423318180,1780054270000,-480.0,0.00032776,30]
[423318171,1780054270000,-1590.0,0.00032507,11]
[423318157,1780054270000,-901.782342,0.00032329,7]
[423318166,1780054270000,-1000.0,0.000325,7]
[423318204,1780054270000,-1590.0,0.00032864,11]
[423318144,1780054270000,-901.782342,0.00032329,7]
[423318145,1780054270000,-901.782342,0.00032329,7]
[423318150,1780054270000,-901.782342,0.00032329,7]
[423318147,1780054270000,-901.782342,0.00032329,7]
[423318148,1780054270000,-901.782342,0.00032329,7]
[423318149,1780054270000,-901.782342,0.00032329,7]
[423318146,1780054270000,-901.782342,0.00032329,7]
[423318152,1780054270000,-901.782342,0.00032329,7]
[423318153,1780054270000,-901.782342,0.00032329,7]
[423318151,1780054270000,-901.782342,0.00032329,7]
[423318170,1780054270000,-1590.0,0.00032507,11]
[423318154,1780054270000,-901.782342,0.00032329,7]
[423318155,1780054270000,-901.782342,0.00032329,7]
[423318156,1780054270000,-901.782342,0.00032329,7]
[423318158,1780054270000,-901.782342,0.00032329,7]
[423318161,1780054270000,-997.47,0.00032356,120]
[423318160,1780054270000,-578.22484893,0.00032345,30]
[423318163,1780054270000,-3000.0,0.00032398,60]
[423318162,1780054270000,-500.0,0.00032398,60]
[423318165,1780054270000,-165.0,0.000325,120]
[423318164,1780054270000,-152.0,0.00032475,38]
[423318168,1780054270000,-1000.0,0.000325,25]
[423318172,1780054270000,-253.40439905,0.00032567,90]
[423318159,1780054270000,-901.782338,0.00032329,7]
[423318202,1780054270000,-1489.0,0.00032839,30]
[423318209,1780054270000,-1889.3771422,0.00032868,7]
[423318194,1780054270000,-1177.0,0.00032822,30]
[423318227,1780054270000,-500.0,0.00032876,2]
[423318230,1780054270000,-396.10184843,0.00032876,2]
[423318229,1780054270000,-567.18453509,0.00032876,2]
[423318228,1780054270000,-500.0,0.00032876,2]
[423318226,1780054270000,-500.0,0.00032876,2]
[423318232,1780054270000,-500.0,0.00032876,2]
[423318231,1780054270000,-500.0,0.00032876,2]
[423318233,1780054270000,-263.64769408,0.00032876,2]
[423318240,1780054270000,-1315.13235359,0.00032876,2]
[423318236,1780054270000,-1315.13235359,0.00032876,2]
[423318244,1780054270000,-184.86622745,0.00032876,2]
[423318243,1780054270000,-500.0,0.00032876,2]
[423318235,1780054270000,-1315.13235359,0.00032876,2]
[423318245,1780054270000,-1348.01066242,0.00032876,2]
[423318237,1780054270000,-1315.13235359,0.00032876,2]
[423318234,1780054270000,-1315.13235359,0.00032876,2]
[423318242,1780054270000,-500.0,0.00032876,2]
[423318238,1780054270000,-1315.13235359,0.00032876,2]
[423318239,1780054270000,-1315.13235359,0.00032876,2]
[423318246,1780054270000,-1348.01066242,0.00032876,2]
[423318248,1780054270000,-1348.01066242,0.00032876,2]
[423318247,1780054270000,-1348.01066242,0.00032876,2]
[423318193,1780054270000,-200.0,0.000328,12]
[423318224,1780054270000,-500.0,0.00032876,2]
[423318219,1780054270000,-500.0,0.00032876,2]
[423318241,1780054270000,-1315.13235359,0.00032876,2]
[423318222,1780054270000,-500.0,0.00032876,2]
[423318195,1780054270000,-1141.98545966,0.00032824,7]
[423318216,1780054270000,-151.07708954,0.00032876,120]
[423318198,1780054270000,-952.56598989,0.00032824,7]
[423318196,1780054270000,-1050.28717138,0.00032824,7]
[423318201,1780054270000,-1086.68199493,0.00032827,7]
[423318200,1780054270000,-176.77,0.00032827,120]
[423318199,1780054270000,-1066.26013263,0.00032827,7]
[423318197,1780054270000,-986.00124873,0.00032824,7]
[423318211,1780054270000,-405.70641793,0.0003287,120]
[423318207,1780054270000,-2044.5920651,0.00032867,7]
[423318208,1780054270000,-1798.19445992,0.00032868,7]
[423318205,1780054270000,-1591.46192759,0.00032867,7]
[423318206,1780054270000,-1049.12764854,0.00032867,7]
[423318220,1780054270000,-500.0,0.00032876,2]
[423318215,1780054270000,-154.79529296,0.00032876,30]
[423318213,1780054270000,-284.39010402,0.00032874,14]
[423318214,1780054270000,-64511.36018702,0.00032876,10]
[423318212,1780054270000,-151.0,0.00032874,14]
[423318225,1780054270000,-500.0,0.00032876,2]
[423318221,1780054270000,-500.0,0.00032876,2]
[423318223,1780054270000,-500.0,0.00032876,2]
[423318217,1780054270000,-388.84978776,0.00032876,2]
[423318210,1780054270000,-3578.46899556,0.0003287,7]
[423318218,1780054270000,-500.0,0.00032876,2]
[423318281,1780054271000,-4402.366227,0.00032877,7]
[423318282,1780054271000,-2190.158846,0.00032877,7]
[423318286,1780054271000,-2190.158846,0.00032877,7]
[423318287,1780054271000,-4402.366227,0.00032877,7]
[423318274,1780054271000,-2190.158846,0.00032877,7]
[423318279,1780054271000,-4402.366227,0.00032877,7]
[423318280,1780054271000,-2190.158846,0.00032877,7]
[423318276,1780054271000,-2190.158846,0.00032877,7]
[423318284,1780054271000,-2190.158846,0.00032877,7]
[423318288,1780054271000,-2190.158846,0.00032877,7]
[423318285,1780054271000,-4402.366227,0.00032877,7]
[423318296,1780054271000,-4402.366227,0.00032877,7]
[423318291,1780054271000,-4402.366227,0.00032877,7]
[423318290,1780054271000,-2190.158846,0.00032877,7]
[423318292,1780054271000,-2190.158846,0.00032877,7]
[423318289,1780054271000,-4402.366227,0.00032877,7]
[423318293,1780054271000,-4402.366227,0.00032877,7]
[423318295,1780054271000,-2190.158846,0.00032877,7]
[423318294,1780054271000,-8342.200735,0.00032877,7]
[423318299,1780054271000,-4402.366227,0.00032877,7]
[423318297,1780054271000,-8342.200735,0.00032877,7]
[423318298,1780054271000,-2190.158846,0.00032877,7]
[423318273,1780054271000,-4402.366227,0.00032877,7]
[423318283,1780054271000,-4402.366227,0.00032877,7]
[423318272,1780054271000,-4402.366227,0.00032877,7]
[423318250,1780054271000,-500.0,0.00032876,2]
[423318275,1780054271000,-4402.366227,0.00032877,7]
[423318300,1780054271000,-8342.200735,0.00032877,7]
[423318249,1780054271000,-500.0,0.00032876,2]
[423318252,1780054271000,-500.0,0.00032876,2]
[423318251,1780054271000,-500.0,0.00032876,2]
[423318253,1780054271000,-500.0,0.00032876,2]
[423318256,1780054271000,-500.0,0.00032876,2]
[423318254,1780054271000,-500.0,0.00032876,2]
[423318255,1780054271000,-230.59826764,0.00032876,2]
[423318264,1780054271000,-500.0,0.00032876,2]
[423318265,1780054271000,-214.48670305,0.00032876,2]
[423318266,1780054271000,-3300.0,0.00032877,120]
[423318271,1780054271000,-4402.366227,0.00032877,7]
[423318257,1780054271000,-500.0,0.00032876,2]
[423318259,1780054271000,-500.0,0.00032876,2]
[423318258,1780054271000,-500.0,0.00032876,2]